fUST/lending_fUST_20260408
["ID","MTS","AMOUNT","RATE_DAILY","PERIOD"]
[420008584,1775609438550,-500.0,0.00016773,2]
[420008585,1775609438560,-500.0,0.00016773,2]
[420008587,1775609438570,-500.0,0.00016773,2]
[420008589,1775609438580,-500.0,0.00016773,2]
[420008591,1775609438590,-500.0,0.00016773,2]
[420008593,1775609438600,-189.13002671,0.00016791,2]
[420008595,1775609438610,-500.0,0.00016791,2]
[420008597,1775609438620,-500.0,0.00016791,2]
[420008599,1775609438629,-500.0,0.00016791,2]
[420008601,1775609438639,-500.0,0.00016791,2]
[420008603,1775609438649,-500.0,0.00016791,2]
[420008605,1775609438659,-500.0,0.00016791,2]
[420008607,1775609438669,-500.0,0.00016791,2]
[420008609,1775609438679,-500.0,0.00016791,2]
[420008610,1775609438689,-500.0,0.00016791,2]
[420008611,1775609438699,-500.0,0.00016791,2]
[420008612,1775609438710,-500.0,0.00016791,2]
[420008613,1775609438719,-500.0,0.00016791,2]
[420008614,1775609438729,-500.0,0.00016791,2]
[420008615,1775609438739,-500.0,0.00016791,2]
[420008616,1775609438749,-500.0,0.00016791,2]
[420008617,1775609438759,-500.0,0.00016791,2]
[420008618,1775609438769,-500.0,0.00016791,2]
[420008619,1775609438778,-500.0,0.00016791,2]
[420008620,1775609438788,-500.0,0.00016791,2]
[420008621,1775609438798,-500.0,0.00016791,2]
[420008622,1775609438808,-500.0,0.00016791,2]
[420008623,1775609438818,-500.0,0.00016791,2]
[420008624,1775609438828,-500.0,0.00016791,2]
[420008625,1775609438838,-500.0,0.00016791,2]
[420008626,1775609438848,-500.0,0.00016791,2]
[420008627,1775609438857,-500.0,0.00016791,2]
[420008628,1775609438867,-500.0,0.00016791,2]
[420008629,1775609438877,-500.0,0.00016791,2]
[420008630,1775609438887,-500.0,0.00016791,2]
[420008631,1775609438896,-500.0,0.00016791,2]
[420008632,1775609438906,-500.0,0.00016791,2]
[420008633,1775609438916,-500.0,0.00016791,2]
[420008634,1775609438926,-500.0,0.00016791,2]
[420008635,1775609438936,-500.0,0.00016791,2]
[420008636,1775609438945,-500.0,0.00016791,2]
[420008637,1775609438956,-500.0,0.00016791,2]
[420008638,1775609438966,-500.0,0.00016791,2]
[420008639,1775609438976,-500.0,0.00016791,2]
[420008640,1775609438985,-500.0,0.00016791,2]
[420008641,1775609438996,-500.0,0.00016791,2]
[420008642,1775609439008,-500.0,0.00016791,2]
[420008643,1775609439018,-500.0,0.00016791,2]
[420008644,1775609439029,-500.0,0.00016791,2]
[420008645,1775609439039,-500.0,0.00016791,2]
[420008646,1775609439049,-500.0,0.00016791,2]
[420008647,1775609439059,-500.0,0.00016791,2]
[420008648,1775609439070,-500.0,0.00016791,2]
[420008649,1775609439081,-500.0,0.00016791,2]
[420008650,1775609439092,-500.0,0.00016791,2]
[420008651,1775609439103,-500.0,0.00016791,2]
[420008652,1775609439113,-500.0,0.00016791,2]
[420008653,1775609439123,-500.0,0.00016791,2]
[420008654,1775609439133,-155.68741677,0.00016791,2]
[420008655,1775609439143,-500.0,0.00016791,2]
[420008656,1775609439153,-500.0,0.00016791,2]
[420008657,1775609439163,-500.0,0.00016791,2]
[420008658,1775609439172,-500.0,0.00016791,2]
[420008659,1775609439182,-500.0,0.00016791,2]
[420008660,1775609439191,-500.0,0.00016791,2]
[420008661,1775609439200,-500.0,0.00016791,2]
[420008662,1775609439209,-500.0,0.00016791,2]
[420008663,1775609439219,-500.0,0.00016791,2]
[420008664,1775609439228,-500.0,0.00016791,2]
[420008665,1775609439238,-500.0,0.00016791,2]
[420008666,1775609439248,-500.0,0.00016791,2]
[420008667,1775609439258,-500.0,0.00016791,2]
[420008668,1775609439269,-500.0,0.00016791,2]
[420008669,1775609439279,-500.0,0.00016791,2]
[420008670,1775609439288,-500.0,0.00016791,2]
[420008671,1775609439298,-500.0,0.00016791,2]
[420008672,1775609439308,-500.0,0.00016791,2]
[420008673,1775609439318,-500.0,0.00016791,2]
[420008674,1775609439328,-500.0,0.00016791,2]
[420008675,1775609439338,-500.0,0.00016791,2]
[420008676,1775609439349,-500.0,0.00016791,2]
[420008677,1775609439359,-315.14942192,0.00016791,2]
[420008678,1775609439368,-500.0,0.00016791,2]
[420008679,1775609439378,-500.0,0.00016791,2]
[420008680,1775609439389,-500.0,0.00016791,2]
[420008681,1775609439399,-500.0,0.00016791,2]
[420008682,1775609439408,-500.0,0.00016794,2]
[420008683,1775609439418,-500.0,0.00016794,2]
[420008684,1775609439428,-500.0,0.00016794,2]
[420008685,1775609439438,-500.0,0.00016794,2]
[420008687,1775609439448,-500.0,0.00016794,2]
[420008689,1775609439457,-500.0,0.00016794,2]
[420008691,1775609439467,-294.31362222,0.00016794,2]
[420008692,1775609439476,-500.0,0.00016794,2]
[420008694,1775609439486,-500.0,0.00016794,2]
[420008696,1775609439495,-500.0,0.00016794,2]
[420008697,1775609439505,-500.0,0.00016794,2]
[420008698,1775609439515,-500.0,0.00016794,2]
[420008699,1775609439525,-500.0,0.00016794,2]
[420008700,1775609439535,-500.0,0.00016794,2]
[420008701,1775609439545,-500.0,0.00016794,2]
[420008702,1775609439554,-500.0,0.00016794,2]
[420008703,1775609439564,-500.0,0.00016794,2]
[420008704,1775609439574,-500.0,0.00016794,2]
[420008705,1775609439584,-169.484208,0.00016794,2]
[420008706,1775609439593,-500.0,0.00016794,2]
[420008707,1775609439603,-500.0,0.00016794,2]
[420008708,1775609439613,-500.0,0.00016794,2]
[420008709,1775609439622,-500.0,0.00016794,2]
[420008710,1775609439632,-500.0,0.00016794,2]
[420008711,1775609439641,-500.0,0.00016794,2]
[420008712,1775609439650,-500.0,0.00016794,2]
[420008713,1775609439660,-475.64189451,0.00016794,2]
[420008714,1775609439669,-500.0,0.00016794,2]
[420008715,1775609439679,-500.0,0.00016794,2]
[420008716,1775609439689,-500.0,0.00016794,2]
[420008717,1775609439698,-500.0,0.00016794,2]
[420008718,1775609439708,-500.0,0.00016794,2]
[420008719,1775609439717,-883.2341735,0.00016795,2]
[420008720,1775609439726,-335.9056383,0.00016795,2]
[420008721,1775609439736,-23589.6777196,0.00016795,2]
[420008722,1775609439745,-1000.0,0.00016829,2]
[420008723,1775609439975,-1000.0,0.00016829,2]
[420008724,1775609439990,-1000.0,0.00016829,2]
[420008725,1775609440000,-1000.0,0.00016829,2]
[420008726,1775609440010,-1000.0,0.00016829,2]
[420008727,1775609440020,-1000.0,0.00016829,2]
[420008728,1775609440031,-1000.0,0.00016829,2]
[420008729,1775609440041,-1000.0,0.00016829,2]
[420008730,1775609440051,-1000.0,0.00016829,2]
[420008731,1775609440060,-1000.0,0.00016829,2]
[420008732,1775609440070,-1000.0,0.00016829,2]
[420008733,1775609440079,-1000.0,0.00016829,2]
[420008734,1775609440089,-1000.0,0.00016829,2]
[420008735,1775609440098,-1000.0,0.00016829,2]
[420008736,1775609440108,-1000.0,0.00016829,2]
[420008738,1775609440118,-1000.0,0.00016829,2]
[420008739,1775609440127,-1000.0,0.00016829,2]
[420008740,1775609440137,-1000.0,0.00016829,2]
[420008741,1775609440146,-876.76714436,0.00016829,2]
[420008742,1775609440156,-1000.0,0.00016829,2]
[420008743,1775609440165,-1000.0,0.00016829,2]
[420008744,1775609440174,-1000.0,0.00016829,2]
[420008746,1775609440184,-1000.0,0.00016829,2]
[420008747,1775609440193,-993.51924981,0.00016829,2]
[420008748,1775609440202,-180.35084596,0.00016829,2]
[420008749,1775609440212,-151.0,0.00016829,2]
[420008750,1775609440222,-151.0,0.00016829,2]
[420008751,1775609440232,-151.0,0.00016829,2]
[420008752,1775609440242,-151.0,0.00016829,2]
[420008753,1775609440252,-151.0,0.00016829,2]
[420008754,1775609440262,-151.0,0.00016829,2]
[420008755,1775609440272,-151.0,0.00016829,2]
[420008756,1775609440282,-151.0,0.00016829,2]
[420008757,1775609440292,-151.0,0.00016829,2]
[420008758,1775609440302,-151.0,0.00016829,2]
[420008759,1775609440312,-151.0,0.00016829,2]
[420008760,1775609440322,-151.0,0.00016829,2]
[420008761,1775609440331,-151.0,0.00016829,2]
[420008762,1775609440341,-151.0,0.00016829,2]
[420008763,1775609440351,-151.0,0.00016829,2]
[420008764,1775609440361,-151.0,0.00016831,2]
[420008765,1775609440370,-262.039305,0.0001687,2]
[420008766,1775609440380,-500.0,0.00016873,2]
[420008767,1775609440389,-500.0,0.00017068,2]
[420008768,1775609440399,-1000.0,0.00017321,2]
[420008769,1775609440409,-1000.0,0.00017321,2]
[420008770,1775609440419,-1005.77750109,0.00017321,2]
[420008771,1775609440429,-1000.0,0.00017321,2]
[420008772,1775609440439,-1000.0,0.00017321,2]
[420008773,1775609440448,-500.0,0.00017342,2]
[420008774,1775609440459,-500.0,0.00017616,2]
[420008775,1775609440468,-1000.67352224,0.00017868,2]
[420008776,1775609440478,-1500.0,0.00017868,2]
[420008777,1775609440488,-1500.0,0.00017868,2]
[420008778,1775609440499,-1500.0,0.00017868,2]
[420008779,1775609440509,-500.0,0.0001789,2]
[420008780,1775609440519,-500.0,0.00018164,2]
[420008781,1775609440529,-587.0,0.00018204,2]
[420008782,1775609440539,-2000.0,0.00018416,2]
[420008783,1775609440549,-2000.0,0.00018416,2]
[420008784,1775609440558,-2000.0,0.00018416,2]
[420008785,1775609440568,-500.0,0.00018438,2]
[420008786,1775609440578,-883.2341735,0.00018606,2]
[420008787,1775609440588,-500.0,0.00018712,2]
[420008788,1775609440598,-335.9056383,0.00018728,2]
[420008789,1775609440607,-500.0,0.00018964,2]
[420008790,1775609440618,-200.0,0.00019178,2]
[420008791,1775609440627,-213.44,0.00019178,2]
[420008792,1775609440637,-200.0,0.00019178,2]
[420008793,1775609440647,-437.50787528,0.00019351,2]
[420008794,1775609440657,-1823.94099041,0.00019351,2]
[420008795,1775609440667,-153.53954631,0.00019369,2]
[420008796,1775609440678,-276.37118336,0.00019369,2]
[420008797,1775609440688,-491.32654819,0.00019369,2]
[420008798,1775609440698,-766.93003381,0.00019369,2]
[420008799,1775609440707,-386.87125193,0.00019369,2]
[420008800,1775609440717,-696.36825348,0.00019369,2]
[420008801,1775609440727,-1237.98800618,0.00019369,2]
[420008802,1775609440736,-1934.35625966,0.00019369,2]
[420008803,1775609440745,-2782.68754089,0.00019369,2]
[420008804,1775609440755,-4622.372141,0.00019578,2]
[420008805,1775609440765,-1739.672008,0.00019578,2]
[420008806,1775609440775,-1739.672008,0.00019578,2]
[420008807,1775609440784,-1739.672008,0.00019578,2]
[420008808,1775609440793,-1739.672008,0.00019578,2]
[420008809,1775609440803,-151.0,0.00019578,2]
[420008811,1775609440813,-151.0,0.00019578,2]
[420008813,1775609440823,-663.0,0.0001992,2]
[420008815,1775609440833,-248.50492373,0.00020058,2]
[420008817,1775609440841,-248.90448356,0.00020181,2]
[420008818,1775609440850,-500.0,0.00020285,2]
[420008820,1775609440860,-151.0,0.00020388,2]
[420008822,1775609440869,-151.0,0.00020388,2]
[420008824,1775609440879,-151.0,0.00020388,2]
[420008826,1775609440889,-151.0,0.00020388,2]
[420008828,1775609440898,-4622.372141,0.00020402,2]
[420008830,1775609440908,-151.0,0.00020402,2]
[420008832,1775609440918,-151.0,0.00020402,2]
[420008834,1775609440928,-883.2341735,0.00020418,2]
[420008836,1775609440938,-5263.5685674,0.0002058,2]
[420008838,1775609440948,-335.9056383,0.0002066,2]
[420008839,1775609440957,-366.0,0.00020723,2]
[420008840,1775609440966,-503.31175885,0.00020833,2]
[420008841,1775609440976,-151.0,0.00020961,2]
[420008842,1775609440986,-162.380719,0.00020961,2]
[420008843,1775609440996,-461.0432349,0.00020961,2]
[420008844,1775609441005,-162.380719,0.00020961,2]
[420008845,1775609441015,-537.6845,0.00020961,2]
[420008846,1775609441024,-2150.738,0.00020961,2]
[420008847,1775609441034,-537.6845,0.00020961,2]
[420008848,1775609441044,-557.5788265,0.00021016,2]
[420008849,1775609441054,-500.0,0.00021069,2]
[420008850,1775609441063,-500.0,0.00021069,2]
[420008851,1775609441072,-578.20924308,0.00021071,2]
[420008852,1775609441082,-599.60298507,0.00021126,2]
[420008853,1775609441092,-621.78829552,0.00021181,2]
[420008854,1775609441102,-500.0,0.00021222,2]
[420008855,1775609441111,-4622.372141,0.00021226,2]
[420008856,1775609441121,-644.79446246,0.00021236,2]
[420008857,1775609441130,-355.90553975,0.00021262,2]
[420008858,1775609441140,-640.62997155,0.00021262,2]
[420008859,1775609441150,-1138.8977272,0.00021262,2]
[420008860,1775609441160,-1779.52769876,0.00021262,2]
[420008861,1775609441170,-2562.51988621,0.00021262,2]
[420008862,1775609441180,-336.90749864,0.00021262,2]
[420008863,1775609441189,-606.43349755,0.00021262,2]
[420008864,1775609441198,-1078.10399565,0.00021262,2]
[420008865,1775609441208,-668.65185757,0.00021291,2]
[420008866,1775609441218,-693.3919763,0.00021346,2]
[420008867,1775609441228,-719.04747942,0.00021401,2]
[420008868,1775609441238,-1174.4608974,0.00021424,2]
[420008869,1775609441247,-745.65223616,0.00021456,2]
[420008870,1775609441257,-557.5788265,0.00021509,2]
[420008871,1775609441267,-2230.315306,0.00021509,2]
[420008872,1775609441277,-773.2413689,0.00021511,2]
[420008873,1775609441288,-801.85129955,0.00021566,2]
[420008874,1775609441298,-1000.0,0.00021617,2]
[420008875,1775609441308,-831.51979763,0.00021621,2]
[420008876,1775609441318,-862.28603014,0.00021676,2]
[420008877,1775609441328,-894.19061326,0.00021731,2]
[420008878,1775609441338,-1000.0,0.0002177,2]
[420008879,1775609441348,-3550.45028841,0.000219,2]
[420008880,1775609441358,-151.0,0.00021918,2]
[420008881,1775609441368,-151.0,0.00021918,2]
[420008882,1775609441377,-151.0,0.00021918,2]
[420008883,1775609441388,-151.0,0.00021918,2]
[420008884,1775609441398,-151.0,0.00021918,2]
[420008885,1775609441408,-151.0,0.00021918,2]
[420008886,1775609441418,-151.0,0.00021918,2]
[420008887,1775609441427,-151.0,0.00021918,2]
[420008888,1775609441437,-151.0,0.00021918,2]
[420008889,1775609441447,-151.0,0.00021918,2]
[420008890,1775609441456,-184.55444,0.00021918,2]
[420008891,1775609441466,-151.0,0.00021918,2]
[420008892,1775609441476,-151.0,0.00021918,2]
[420008893,1775609441486,-151.0,0.00021918,2]
[420008894,1775609441496,-151.0,0.00021918,2]
[420008895,1775609441507,-151.0,0.00021918,2]
[420008896,1775609441518,-151.0,0.00021918,2]
[420008897,1775609441528,-185.740016,0.00021918,2]
[420008898,1775609441539,-151.0,0.00021918,2]
[420008899,1775609441549,-151.0,0.00021918,2]
[420008900,1775609441560,-151.0,0.00021918,2]
[420008901,1775609441571,-151.0,0.00021918,2]
[420008902,1775609441581,-151.0,0.00021918,2]
[420008903,1775609441591,-27.55126197,0.00021918,2]
[420008933,1775609443476,-151.0,0.00016829,2]
[420008935,1775609443486,-151.0,0.00016829,2]
[420008937,1775609443497,-151.0,0.00016829,2]
[420008938,1775609443508,-1684.5374932,0.00021262,2]
[420008939,1775609443519,-123.44873803,0.00021918,2]
[420008940,1775609443530,-151.0,0.00021918,2]
[420008941,1775609443541,-151.0,0.00021918,2]
[420008942,1775609443551,-151.0,0.00021918,2]
[420008943,1775609443562,-151.0,0.00021918,2]
[420008944,1775609443572,-151.0,0.00021918,2]
[420008945,1775609443582,-151.0,0.00021918,2]
[420008946,1775609443592,-151.0,0.00021918,2]
[420008947,1775609443603,-151.0,0.00021918,2]
[420008948,1775609443613,-151.0,0.00021918,2]
[420008949,1775609443624,-307.670431,0.00021918,2]
[420008950,1775609443634,-328.897,0.00021918,2]
[420008951,1775609443644,-307.670431,0.00021918,2]
[420008952,1775609443655,-328.897,0.00021918,2]
[420008953,1775609443665,-307.670431,0.00021918,2]
[420008954,1775609443675,-328.897,0.00021918,2]
[420008955,1775609443685,-307.670431,0.00021918,2]
[420008956,1775609443695,-328.897,0.00021918,2]
[420008957,1775609443705,-209.622618,0.00021918,2]
[420008958,1775609443717,-209.622618,0.00021918,2]
[420008959,1775609443727,-209.622618,0.00021918,2]
[420008960,1775609443738,-209.622618,0.00021918,2]
[420008961,1775609443748,-151.0,0.00021918,2]
[420008962,1775609443759,-333.286681,0.00021918,2]
[420008963,1775609443769,-151.0,0.00021918,2]
[420008964,1775609443779,-333.286681,0.00021918,2]
[420008965,1775609443789,-151.0,0.00021918,2]
[420008966,1775609443800,-333.286681,0.00021918,2]
[420008967,1775609443810,-250.462319,0.00021918,2]
[420008968,1775609443820,-333.286681,0.00021918,2]
[420008970,1775609443829,-216.217168,0.00021918,2]
[420008972,1775609443839,-151.0,0.00021918,2]
[420008973,1775609443848,-216.217168,0.00021918,2]
[420008974,1775609443858,-216.217168,0.00021918,2]
[420008975,1775609443869,-190.67665,0.00021918,2]
[420008976,1775609443879,-216.217168,0.00021918,2]
[420008977,1775609443889,-190.67665,0.00021918,2]
[420008978,1775609443899,-190.67665,0.00021918,2]
[420008979,1775609443909,-190.67665,0.00021918,2]
[420008980,1775609443919,-239.441254,0.00021918,2]
[420008981,1775609443929,-239.441254,0.00021918,2]
[420008982,1775609443939,-239.441254,0.00021918,2]
[420008983,1775609443949,-239.441254,0.00021918,2]
[420008984,1775609443959,-151.0,0.00021918,2]
[420008985,1775609443970,-985.060738,0.00021918,2]
[420008986,1775609443980,-985.060738,0.00021918,2]
[420008987,1775609443991,-985.060738,0.00021918,2]
[420008988,1775609444001,-985.060738,0.00021918,2]
[420008989,1775609444011,-151.0,0.00021918,2]
[420008990,1775609444021,-151.0,0.00021918,2]
[420008991,1775609444031,-151.0,0.00021918,2]
[420008992,1775609444041,-294.588746,0.00021918,2]
[420008993,1775609444051,-386.360114,0.00021918,2]
[420008994,1775609444061,-386.360114,0.00021918,2]
[420008995,1775609444072,-386.360114,0.00021918,2]
[420008996,1775609444081,-386.360114,0.00021918,2]
[420008997,1775609444092,-151.0,0.00021918,2]
[420008998,1775609444102,-151.0,0.00021918,2]
[420008999,1775609444113,-151.0,0.00021918,2]
[420009000,1775609444124,-151.0,0.00021918,2]
[420009001,1775609444134,-151.0,0.00021918,2]
[420009002,1775609444144,-239.009985,0.00021918,2]
[420009003,1775609444154,-4031.707905,0.00021918,2]
[420009004,1775609444165,-4031.707905,0.00021918,2]
[420009005,1775609444175,-1391.09368681,0.00021918,2]
[420009006,1775609444188,-2640.61421819,0.00021918,2]
[420009007,1775609444198,-1230.50722311,0.00021918,2]
[420009019,1775609446238,-2801.20068189,0.00021918,2]
[420009021,1775609446248,-275.38128,0.00021918,2]
[420009023,1775609446259,-151.0,0.00021918,2]
[420009025,1775609446269,-151.0,0.00021918,2]
[420009027,1775609446279,-151.0,0.00021918,2]
[420009029,1775609446289,-243.567737,0.00021918,2]
[420009031,1775609446299,-151.0,0.00021918,2]
[420009033,1775609446309,-151.0,0.00021918,2]
[420009035,1775609446318,-213.593349,0.00021918,2]
[420009037,1775609446328,-213.593349,0.00021918,2]
[420009039,1775609446337,-213.593349,0.00021918,2]
[420009041,1775609446347,-213.593349,0.00021918,2]
[420009043,1775609446357,-680.401813,0.00021918,2]
[420009045,1775609446366,-151.0,0.00021918,2]
[420009047,1775609446376,-151.0,0.00021918,2]
[420009049,1775609446386,-1638.785327,0.00021918,2]
[420009051,1775609446396,-1638.785327,0.00021918,2]
[420009053,1775609446406,-680.401813,0.00021918,2]
[420009054,1775609446415,-244.71304,0.00021918,2]
[420009057,1775609446426,-151.0,0.00021918,2]
[420009059,1775609446436,-1638.785327,0.00021918,2]
[420009060,1775609446446,-1638.785327,0.00021918,2]
[420009063,1775609446456,-680.401813,0.00021918,2]
[420009065,1775609446466,-1638.785327,0.00021918,2]
[420009066,1775609446476,-680.401813,0.00021918,2]
[420009068,1775609446487,-1638.785327,0.00021918,2]
[420009070,1775609446498,-1245.96919734,0.00021918,2]
[420009073,1775609446510,-392.81612966,0.00021918,2]
[420009075,1775609446521,-1638.785327,0.00021918,2]
[420009077,1775609446530,-151.0,0.00021918,2]
[420009079,1775609446540,-151.0,0.00021918,2]
[420009081,1775609446550,-151.0,0.00021918,2]
[420009083,1775609446560,-151.0,0.00021918,2]
[420009085,1775609446570,-925.940875,0.00021918,2]
[420009087,1775609446580,-925.940875,0.00021918,2]
[420009089,1775609446590,-925.940875,0.00021918,2]
[420009090,1775609446601,-151.0,0.00021918,2]
[420009091,1775609446610,-925.940875,0.00021918,2]
[420009092,1775609446621,-151.0,0.00021918,2]
[420009093,1775609446631,-615.68101,0.00021918,2]
[420009094,1775609446641,-615.68101,0.00021918,2]
[420009095,1775609446651,-188.11133446,0.00021918,2]
[420009114,1775609447006,-368.1946,0.00021918,2]
[420009116,1775609447019,-369.63494054,0.00021918,2]
[420009118,1775609447030,-166.369916,0.00021918,2]
[420009120,1775609447040,-925.940875,0.00021918,2]
[420009122,1775609447049,-615.68101,0.00021918,2]
[420009124,1775609447061,-615.68101,0.00021918,2]
[420009126,1775609447070,-314.9735831,0.00021918,2]
[420009129,1775609447082,-610.9672919,0.00021918,2]
[420009131,1775609447092,-925.940875,0.00021918,2]
[420009133,1775609447102,-615.68101,0.00021918,2]
[420009135,1775609447111,-615.68101,0.00021918,2]
[420009137,1775609447121,-615.68101,0.00021918,2]
[420009138,1775609447131,-615.68101,0.00021918,2]
[420009140,1775609447141,-151.0,0.00021918,2]
[420009142,1775609447151,-151.0,0.00021918,2]
[420009144,1775609447161,-540.839416,0.00021918,2]
[420009146,1775609447172,-151.0,0.00021918,2]
[420009148,1775609447182,-540.839416,0.00021918,2]
[420009150,1775609447191,-151.0,0.00021918,2]
[420009152,1775609447201,-540.839416,0.00021918,2]
[420009154,1775609447212,-540.839416,0.00021918,2]
[420009156,1775609447222,-540.839416,0.00021918,2]
[420009158,1775609447232,-540.839416,0.00021918,2]
[420009160,1775609447242,-540.839416,0.00021918,2]
[420009162,1775609447253,-413.53002101,0.00021918,2]
[420009165,1775609447266,-127.30939499,0.00021918,2]
[420009167,1775609447275,-217.21054806,0.00021918,2]
[420009169,1775609447285,-151.0,0.00021918,2]
[420009170,1775609447295,-151.0,0.00021918,2]
[420009173,1775609447305,-151.0,0.00021918,2]
[420009174,1775609447314,-154.915,0.00021918,2]
[420009176,1775609447324,-151.0,0.00021918,2]
[420009178,1775609447334,-151.0,0.00021918,2]
[420009180,1775609447344,-151.0,0.00021918,2]
[420009182,1775609447354,-151.0,0.00021918,2]
[420009183,1775609447365,-160.426832,0.00021918,2]
[420009184,1775609447375,-151.0,0.00021918,2]
[420009185,1775609447385,-151.0,0.00021918,2]
[420009186,1775609447395,-151.0,0.00021918,2]
[420009187,1775609447405,-44.06321978,0.00021918,2]
[420009188,1775609447418,-244.70499622,0.00021918,2]
[420009189,1775609447428,-151.0,0.00021918,2]
[420009190,1775609447438,-166.003221,0.00021918,2]
[420009191,1775609447448,-151.0,0.00021918,2]
[420009192,1775609447458,-307.670431,0.00021918,2]
[420009193,1775609447468,-328.897,0.00021918,2]
[420009194,1775609447478,-307.670431,0.00021918,2]
[420009195,1775609447488,-328.897,0.00021918,2]
[420009196,1775609447500,-307.670431,0.00021918,2]
[420009197,1775609447511,-328.897,0.00021918,2]
[420009198,1775609447521,-307.670431,0.00021918,2]
[420009199,1775609447530,-328.897,0.00021918,2]
[420009200,1775609447540,-209.622618,0.00021918,2]
[420009201,1775609447549,-209.622618,0.00021918,2]
[420009202,1775609447559,-209.622618,0.00021918,2]
[420009203,1775609447795,-209.622618,0.00021918,2]
[420009204,1775609447805,-333.286681,0.00021918,2]
[420009205,1775609447815,-151.0,0.00021918,2]
[420009206,1775609447825,-151.0,0.00021918,2]
[420009207,1775609447835,-333.286681,0.00021918,2]
[420009208,1775609447845,-151.0,0.00021918,2]
[420009209,1775609447854,-333.286681,0.00021918,2]
[420009210,1775609447864,-333.286681,0.00021918,2]
[420009211,1775609447874,-216.217168,0.00021918,2]
[420009212,1775609447883,-151.0,0.00021918,2]
[420009213,1775609447893,-151.0,0.00021918,2]
[420009214,1775609447903,-216.217168,0.00021918,2]
[420009215,1775609447912,-151.0,0.00021918,2]
[420009216,1775609447921,-216.217168,0.00021918,2]
[420009217,1775609447931,-190.67665,0.00021918,2]
[420009218,1775609447941,-233.796296,0.00021918,2]
[420009219,1775609447951,-216.217168,0.00021918,2]
[420009220,1775609447960,-190.67665,0.00021918,2]
[420009221,1775609447970,-190.67665,0.00021918,2]
[420009222,1775609447979,-190.67665,0.00021918,2]
[420009223,1775609447989,-239.441254,0.00021918,2]
[420009224,1775609447999,-239.441254,0.00021918,2]
[420009225,1775609448009,-239.441254,0.00021918,2]
[420009226,1775609448018,-239.441254,0.00021918,2]
[420009227,1775609448028,-151.0,0.00021918,2]
[420009228,1775609448038,-151.0,0.00021918,2]
[420009229,1775609448048,-985.060738,0.00021918,2]
[420009230,1775609448058,-985.060738,0.00021918,2]
[420009231,1775609448068,-985.060738,0.00021918,2]
[420009232,1775609448078,-985.060738,0.00021918,2]
[420009233,1775609448088,-151.0,0.00021918,2]
[420009234,1775609448097,-151.0,0.00021918,2]
[420009235,1775609448107,-277.466804,0.00021918,2]
[420009236,1775609448116,-386.360114,0.00021918,2]
[420009237,1775609448127,-386.360114,0.00021918,2]
[420009238,1775609448136,-386.360114,0.00021918,2]
[420009239,1775609448146,-386.360114,0.00021918,2]
[420009240,1775609448155,-381.25975677,0.00021918,2]
[420009241,1775610027311,500.0,9.01e-05,2]
[420009242,1775610027341,500.0,9.01e-05,2]
[420009243,1775610027370,500.0,9.01e-05,2]
[420009244,1775610027398,500.0,9.01e-05,2]
[420009245,1775610027428,500.0,9.01e-05,2]
[420009246,1775610027457,500.0,9.01e-05,2]
[420009247,1775610027487,500.0,9.01e-05,2]